[Event "Early-Titled-Tuesday-Blitz-April-23-2024"]
[Site "Chess.com"]
[Date "2024.04.23"]
[Round "9"]
[White "jraosam"]
[Black "Hope_6"]
[Result "0-1"]
[WhiteElo "2012"]
[BlackElo "2635"]
[TimeControl "180+1"]
[EndTime "9:49:35 PDT"]
[Termination "Hope_6 won by resignation"]

1. Nf3 {[%clk 0:02:56.3]} 1... d5 {[%clk 0:02:56.5]} 2. d4 {[%clk 0:02:56.5]}
2... Nf6 {[%clk 0:02:56.2]} 3. e3 {[%clk 0:02:57]} 3... Bg4 {[%clk 0:02:53]} 4.
Be2 {[%clk 0:02:57.4]} 4... c6 {[%clk 0:02:52.9]} 5. O-O {[%clk 0:02:57.8]} 5...
Nbd7 {[%clk 0:02:53]} 6. Nbd2 {[%clk 0:02:58.3]} 6... Qc7 {[%clk 0:02:52.8]} 7.
Ne5 {[%clk 0:02:58.4]} 7... Bxe2 {[%clk 0:02:51.2]} 8. Qxe2 {[%clk 0:02:56.5]}
8... Nxe5 {[%clk 0:02:50.8]} 9. dxe5 {[%clk 0:02:57.4]} 9... Qxe5 {[%clk
0:02:51.3]} 10. c4 {[%clk 0:02:58]} 10... e6 {[%clk 0:02:47.2]} 11. f4 {[%clk
0:02:55.3]} 11... Qc7 {[%clk 0:02:46.7]} 12. e4 {[%clk 0:02:47.5]} 12... dxe4
{[%clk 0:02:42.7]} 13. Nxe4 {[%clk 0:02:47.9]} 13... Be7 {[%clk 0:02:41.3]} 14.
f5 {[%clk 0:02:47.1]} 14... O-O {[%clk 0:02:28.4]} 15. fxe6 {[%clk 0:02:45.6]}
15... fxe6 {[%clk 0:02:25.2]} 16. Ng5 {[%clk 0:02:45.6]} 16... Qb6+ {[%clk
0:01:58.9]} 17. Kh1 {[%clk 0:02:30.3]} 17... Kh8 {[%clk 0:01:23.7]} 18. Qxe6
{[%clk 0:02:23.8]} 18... Ng4 {[%clk 0:00:35.7]} 19. Nf7+ {[%clk 0:01:57.5]}
19... Rxf7 {[%clk 0:00:33.6]} 20. Qxf7 {[%clk 0:01:58.4]} 20... Bf6 {[%clk
0:00:25.4]} 21. h3 {[%clk 0:00:28.1]} 21... Nf2+ {[%clk 0:00:24.7]} 22. Kh2
{[%clk 0:00:28]} 22... Rd8 {[%clk 0:00:17.4]} 23. Bf4 {[%clk 0:00:26.6]} 23...
Qd4 {[%clk 0:00:11.6]} 24. Rad1 {[%clk 0:00:23.8]} 24... Nxd1 {[%clk 0:00:10.8]}
25. Rxd1 {[%clk 0:00:24.7]} 25... Qxd1 {[%clk 0:00:10.6]} 26. Bh6 {[%clk
0:00:18.9]} 26... Qd7 {[%clk 0:00:09.8]} 27. Qxd7 {[%clk 0:00:14.8]} 27... Rxd7
{[%clk 0:00:09.2]} 28. Be3 {[%clk 0:00:15.7]} 28... Re7 {[%clk 0:00:08.9]} 29.
Bxa7 {[%clk 0:00:15.4]} 29... Re4 {[%clk 0:00:08.2]} 30. b3 {[%clk 0:00:14.3]}
30... Re2 {[%clk 0:00:08.3]} 31. a3 {[%clk 0:00:12.6]} 31... Be5+ {[%clk
0:00:08.4]} 32. Kg1 {[%clk 0:00:12.3]} 32... Bg3 {[%clk 0:00:08.9]} 33. Bf2
{[%clk 0:00:09.6]} 33... Bxf2+ {[%clk 0:00:08.2]} 34. Kf1 {[%clk 0:00:10]} 34...
Ra2 {[%clk 0:00:08.9]} 35. b4 {[%clk 0:00:10.2]} 35... Bg3 {[%clk 0:00:08]} 36.
b5 {[%clk 0:00:10.9]} 36... cxb5 {[%clk 0:00:07.7]} 37. cxb5 {[%clk 0:00:11.6]}
37... Rxa3 {[%clk 0:00:08.1]} 38. Ke2 {[%clk 0:00:12.2]} 38... Rb3 {[%clk
0:00:08.5]} 39. b6 {[%clk 0:00:12.1]} 39... Bd6 {[%clk 0:00:08.7]} 0-1

[Event "Early-Titled-Tuesday-Blitz-April-23-2024"]
[Site "Chess.com"]
[Date "2024.04.23"]
[Round "9"]
[White "Larkin-Vladislav"]
[Black "profedechess93"]
[Result "0-1"]
[WhiteElo "2857"]
[BlackElo "2690"]
[TimeControl "180+1"]
[EndTime "9:49:38 PDT"]
[Termination "profedechess93 won by checkmate"]

1. e4 {[%clk 0:02:58.7]} 1... e6 {[%clk 0:02:59.9]} 2. d4 {[%clk 0:02:55.7]}
2... d5 {[%clk 0:03:00.4]} 3. Nc3 {[%clk 0:02:56.5]} 3... Nf6 {[%clk 0:03:00.3]}
4. e5 {[%clk 0:02:56.7]} 4... Nfd7 {[%clk 0:03:00.8]} 5. Nce2 {[%clk 0:02:56.2]}
5... c5 {[%clk 0:03:01.2]} 6. c3 {[%clk 0:02:56.3]} 6... Nc6 {[%clk 0:03:01.9]}
7. Nf3 {[%clk 0:02:56.1]} 7... cxd4 {[%clk 0:02:57.3]} 8. cxd4 {[%clk 0:02:55]}
8... f6 {[%clk 0:02:57.9]} 9. exf6 {[%clk 0:02:53.9]} 9... Nxf6 {[%clk
0:02:58.8]} 10. Nc3 {[%clk 0:02:53.1]} 10... Bd6 {[%clk 0:02:59]} 11. Bb5 {[%clk
0:02:48.3]} 11... O-O {[%clk 0:02:58.6]} 12. O-O {[%clk 0:02:44.4]} 12... Qc7
{[%clk 0:02:58.5]} 13. Re1 {[%clk 0:02:42.5]} 13... Ng4 {[%clk 0:02:56.5]} 14.
g3 {[%clk 0:02:24.9]} 14... Bd7 {[%clk 0:02:32.5]} 15. Ng5 {[%clk 0:02:17.1]}
15... Nxf2 {[%clk 0:01:59.6]} 16. Qh5 {[%clk 0:02:16.3]} 16... h6 {[%clk
0:01:59.3]} 17. Nxe6 {[%clk 0:02:06.3]} 17... Bxe6 {[%clk 0:01:57.4]} 18. Rxe6
{[%clk 0:02:07.2]} 18... Nxd4 {[%clk 0:01:43.7]} 19. Nxd5 {[%clk 0:01:06.5]}
19... Qc2 {[%clk 0:01:20]} 20. Ne3 {[%clk 0:01:05.9]} 20... Nh3+ {[%clk
0:01:03.7]} 21. Qxh3 {[%clk 0:01:03.2]} 21... Qf2+ {[%clk 0:01:03.9]} 22. Kh1
{[%clk 0:01:03]} 22... Nxb5 {[%clk 0:00:19.9]} 23. Qg4 {[%clk 0:00:59.4]} 23...
Qe1+ {[%clk 0:00:18.5]} 24. Kg2 {[%clk 0:00:59.8]} 24... Rf2+ {[%clk 0:00:11.1]}
25. Kh3 {[%clk 0:00:59.9]} 25... Qg1 {[%clk 0:00:11.4]} 26. Nf1 {[%clk
0:00:48.6]} 26... Qxf1+ {[%clk 0:00:09.8]} 27. Kh4 {[%clk 0:00:45.3]} 27... Qg2
{[%clk 0:00:06.9]} 28. h3 {[%clk 0:00:37]} 28... Bc7 {[%clk 0:00:06.1]} 29. Bxh6
{[%clk 0:00:36.6]} 29... Bd8+ {[%clk 0:00:05.8]} 30. Kh5 {[%clk 0:00:36]} 30...
Qd5+ {[%clk 0:00:06.1]} 31. Kg6 {[%clk 0:00:32.8]} 31... Qd3+ {[%clk 0:00:03.9]}
32. Re4 {[%clk 0:00:31]} 32... Qd5 {[%clk 0:00:02.4]} 33. Qe6+ {[%clk
0:00:31.1]} 33... Qxe6+ {[%clk 0:00:03]} 34. Rxe6 {[%clk 0:00:32]} 34... gxh6
{[%clk 0:00:03.9]} 35. Rd1 {[%clk 0:00:30.9]} 35... Rf7 {[%clk 0:00:01.5]} 36.
g4 {[%clk 0:00:29.5]} 36... Rg7+ {[%clk 0:00:02.4]} 37. Kh5 {[%clk 0:00:29.7]}
37... Rg5+ {[%clk 0:00:02.7]} 38. Kxh6 {[%clk 0:00:30.3]} 38... Rg7 {[%clk
0:00:03.4]} 39. Rd5 {[%clk 0:00:28.1]} 39... Nc7 {[%clk 0:00:03]} 40. Rd7 {[%clk
0:00:19.7]} 40... Nxe6 {[%clk 0:00:03.2]} 41. Rd6 {[%clk 0:00:17.6]} 41... Bg5+
{[%clk 0:00:04.1]} 42. Kh5 {[%clk 0:00:17.6]} 42... Nf4# {[%clk 0:00:04.8]} 0-1

[Event "Early-Titled-Tuesday-Blitz-April-23-2024"]
[Site "Chess.com"]
[Date "2024.04.23"]
[Round "9"]
[White "Grandelicious"]
[Black "LikeWater"]
[Result "1-0"]
[WhiteElo "2894"]
[BlackElo "2678"]
[TimeControl "180+1"]
[EndTime "9:49:39 PDT"]
[Termination "Grandelicious won by resignation"]

1. e4 {[%clk 0:03:00.9]} 1... e5 {[%clk 0:02:59.1]} 2. Nf3 {[%clk 0:03:00.7]}
2... d6 {[%clk 0:02:59]} 3. d4 {[%clk 0:02:57.8]} 3... exd4 {[%clk 0:02:59.9]}
4. Nxd4 {[%clk 0:02:58.7]} 4... Nf6 {[%clk 0:03:00.1]} 5. Nc3 {[%clk 0:02:59.1]}
5... Be7 {[%clk 0:03:00.8]} 6. h3 {[%clk 0:02:57.1]} 6... O-O {[%clk 0:02:57.2]}
7. g4 {[%clk 0:02:53.8]} 7... c6 {[%clk 0:02:53.1]} 8. Bg2 {[%clk 0:02:53.7]}
8... a5 {[%clk 0:02:46.9]} 9. O-O {[%clk 0:02:52.7]} 9... Na6 {[%clk 0:02:47.2]}
10. Nce2 {[%clk 0:02:49.3]} 10... d5 {[%clk 0:02:39.7]} 11. e5 {[%clk
0:02:42.4]} 11... Ne4 {[%clk 0:02:18.4]} 12. f3 {[%clk 0:02:40.4]} 12... Nec5
{[%clk 0:02:13.2]} 13. Ng3 {[%clk 0:02:20.2]} 13... f6 {[%clk 0:01:42.5]} 14.
exf6 {[%clk 0:02:20.1]} 14... Bxf6 {[%clk 0:01:43.4]} 15. Nh5 {[%clk 0:02:20.8]}
15... Ne6 {[%clk 0:01:33.7]} 16. Nxf6+ {[%clk 0:02:19.7]} 16... Qxf6 {[%clk
0:01:34.6]} 17. Be3 {[%clk 0:02:04.1]} 17... Nf4 {[%clk 0:01:30.4]} 18. Qd2
{[%clk 0:02:02.1]} 18... Nc5 {[%clk 0:01:12.4]} 19. Rae1 {[%clk 0:01:52.2]}
19... Bd7 {[%clk 0:01:02.3]} 20. Nf5 {[%clk 0:01:38.5]} 20... Bxf5 {[%clk
0:00:38.2]} 21. Bxc5 {[%clk 0:01:34.1]} 21... Bg6 {[%clk 0:00:33.4]} 22. Bxf8
{[%clk 0:01:23.2]} 22... Rxf8 {[%clk 0:00:33.7]} 23. c3 {[%clk 0:01:21.8]} 23...
Bd3 {[%clk 0:00:26.7]} 24. Rf2 {[%clk 0:01:20.4]} 24... Qh4 {[%clk 0:00:23.9]}
25. Kh2 {[%clk 0:01:10.8]} 25... Rf6 {[%clk 0:00:20.4]} 26. Re8+ {[%clk
0:01:05.3]} 26... Kf7 {[%clk 0:00:20.6]} 27. Qe3 {[%clk 0:01:02.8]} 27... Nxh3
{[%clk 0:00:12.5]} 28. Bxh3 {[%clk 0:00:50.9]} 28... Rh6 {[%clk 0:00:12.6]} 29.
f4 {[%clk 0:00:38.6]} 29... Be4 {[%clk 0:00:05.5]} 30. Rxe4 {[%clk 0:00:25]}
30... dxe4 {[%clk 0:00:06.4]} 31. g5 {[%clk 0:00:25.3]} 31... Rd6 {[%clk
0:00:06.7]} 32. Qg3 {[%clk 0:00:20.7]} 32... Qh5 {[%clk 0:00:03.4]} 33. Qg4
{[%clk 0:00:21]} 33... Qxg4 {[%clk 0:00:01.9]} 34. Bxg4 {[%clk 0:00:21.9]} 34...
e3 {[%clk 0:00:01.2]} 35. Re2 {[%clk 0:00:21.7]} 35... Rd2 {[%clk 0:00:01.9]}
36. Rxd2 {[%clk 0:00:20.5]} 36... exd2 {[%clk 0:00:02.8]} 37. Kg2 {[%clk
0:00:20.4]} 37... h6 {[%clk 0:00:03.1]} 38. gxh6 {[%clk 0:00:19.5]} 38... gxh6
{[%clk 0:00:04]} 39. Kf2 {[%clk 0:00:19.8]} 39... Kg6 {[%clk 0:00:04.5]} 40. Ke2
{[%clk 0:00:19.2]} 40... h5 {[%clk 0:00:05]} 41. Bxh5+ {[%clk 0:00:18.9]} 41...
Kxh5 {[%clk 0:00:05.1]} 42. Kxd2 {[%clk 0:00:19.6]} 42... Kg4 {[%clk 0:00:05.4]}
43. Ke3 {[%clk 0:00:20.2]} 43... Kf5 {[%clk 0:00:05.8]} 44. c4 {[%clk
0:00:19.7]} 44... b5 {[%clk 0:00:06.7]} 45. c5 {[%clk 0:00:17.2]} 1-0

[Event "Early-Titled-Tuesday-Blitz-April-23-2024"]
[Site "Chess.com"]
[Date "2024.04.23"]
[Round "9"]
[White "Roedor"]
[Black "Mihajlovskij"]
[Result "1-0"]
[WhiteElo "2345"]
[BlackElo "2179"]
[TimeControl "180+1"]
[EndTime "9:49:39 PDT"]
[Termination "Roedor won on time"]

1. c4 {[%clk 0:02:52]} 1... Nf6 {[%clk 0:02:55.6]} 2. g3 {[%clk 0:02:51.7]} 2...
g6 {[%clk 0:02:55.4]} 3. Bg2 {[%clk 0:02:51.5]} 3... Bg7 {[%clk 0:02:56.3]} 4.
Nc3 {[%clk 0:02:51.7]} 4... O-O {[%clk 0:02:57.2]} 5. Nf3 {[%clk 0:02:52.1]}
5... d6 {[%clk 0:02:57.5]} 6. O-O {[%clk 0:02:52.7]} 6... c5 {[%clk 0:02:57.9]}
7. d4 {[%clk 0:02:52.6]} 7... Nc6 {[%clk 0:02:57.2]} 8. dxc5 {[%clk 0:02:52.7]}
8... dxc5 {[%clk 0:02:58.1]} 9. Be3 {[%clk 0:02:53.2]} 9... Qa5 {[%clk
0:02:57.1]} 10. Qb3 {[%clk 0:02:52.8]} 10... Qb4 {[%clk 0:02:53.2]} 11. Nd5
{[%clk 0:02:48.8]} 11... Qxb3 {[%clk 0:02:45]} 12. axb3 {[%clk 0:02:46.8]} 12...
Nxd5 {[%clk 0:02:40.4]} 13. cxd5 {[%clk 0:02:47.7]} 13... Nb4 {[%clk 0:02:38.9]}
14. Bxc5 {[%clk 0:02:46.5]} 14... Nxd5 {[%clk 0:02:39]} 15. Bd4 {[%clk
0:02:44.1]} 15... Bxd4 {[%clk 0:02:34.2]} 16. Nxd4 {[%clk 0:02:45]} 16... Nf6
{[%clk 0:02:32.5]} 17. Rfc1 {[%clk 0:02:43.3]} 17... Rd8 {[%clk 0:02:29.1]} 18.
Nb5 {[%clk 0:02:32.2]} 18... a6 {[%clk 0:02:28.9]} 19. Nc7 {[%clk 0:02:03.9]}
19... Rb8 {[%clk 0:02:28.9]} 20. Rd1 {[%clk 0:02:04.2]} 20... Bd7 {[%clk
0:02:24.3]} 21. e3 {[%clk 0:01:28]} 21... Kf8 {[%clk 0:01:51]} 22. b4 {[%clk
0:01:22.5]} 22... Bg4 {[%clk 0:01:42.4]} 23. Rxd8+ {[%clk 0:01:15.1]} 23... Rxd8
{[%clk 0:01:43.3]} 24. h3 {[%clk 0:00:54.8]} 24... Bc8 {[%clk 0:01:37.9]} 25.
Rc1 {[%clk 0:00:50.8]} 25... e6 {[%clk 0:01:34.1]} 26. g4 {[%clk 0:00:48.3]}
26... h5 {[%clk 0:01:31.5]} 27. g5 {[%clk 0:00:46.3]} 27... Nd7 {[%clk
0:01:28.5]} 28. b5 {[%clk 0:00:39.7]} 28... axb5 {[%clk 0:01:23.4]} 29. Nxb5
{[%clk 0:00:40.6]} 29... Ne5 {[%clk 0:01:10.5]} 30. Rc7 {[%clk 0:00:39.1]} 30...
Nc6 {[%clk 0:01:05.2]} 31. Bxc6 {[%clk 0:00:35.5]} 31... bxc6 {[%clk 0:01:06.1]}
32. Rxc6 {[%clk 0:00:35.6]} 32... Bd7 {[%clk 0:01:06.5]} 33. Rb6 {[%clk
0:00:31.9]} 33... Ke7 {[%clk 0:01:05.3]} 34. Nd4 {[%clk 0:00:31.6]} 34... e5
{[%clk 0:01:03.5]} 35. Nf3 {[%clk 0:00:29.4]} 35... e4 {[%clk 0:01:00.8]} 36.
Nd4 {[%clk 0:00:18.1]} 36... Bxh3 {[%clk 0:01:00.9]} 37. Nc6+ {[%clk 0:00:17.1]}
37... Kd7 {[%clk 0:00:57.8]} 38. Nxd8 {[%clk 0:00:18]} 38... Kxd8 {[%clk
0:00:58.6]} 39. Rb7 {[%clk 0:00:17.4]} 39... Be6 {[%clk 0:00:59]} 40. b4 {[%clk
0:00:17.1]} 40... Kc8 {[%clk 0:00:59.4]} 41. Ra7 {[%clk 0:00:17.3]} 41... Kb8
{[%clk 0:01:00.3]} 42. Re7 {[%clk 0:00:17.5]} 42... Kc8 {[%clk 0:01:00.3]} 43.
Kh2 {[%clk 0:00:17.7]} 43... Kd8 {[%clk 0:01:01.2]} 44. Ra7 {[%clk 0:00:17.7]}
44... Kc8 {[%clk 0:01:02.1]} 45. Kg3 {[%clk 0:00:18.1]} 45... Kb8 {[%clk
0:01:03]} 46. Rxf7 {[%clk 0:00:18.2]} 46... Kc8 {[%clk 0:01:03.9]} 47. Re7
{[%clk 0:00:18]} 1-0

[Event "Early-Titled-Tuesday-Blitz-April-23-2024"]
[Site "Chess.com"]
[Date "2024.04.23"]
[Round "9"]
[White "UnTucopalaTimba"]
[Black "JaackCamel"]
[Result "0-1"]
[WhiteElo "2023"]
[BlackElo "2204"]
[TimeControl "180+1"]
[EndTime "9:49:40 PDT"]
[Termination "JaackCamel won by resignation"]

1. e4 {[%clk 0:02:59.2]} 1... e6 {[%clk 0:02:58.5]} 2. d4 {[%clk 0:02:57.8]}
2... d5 {[%clk 0:02:57.8]} 3. Nd2 {[%clk 0:02:57.9]} 3... c5 {[%clk 0:02:56.2]}
4. exd5 {[%clk 0:02:55.1]} 4... Qxd5 {[%clk 0:02:54.1]} 5. Ngf3 {[%clk
0:02:49.7]} 5... cxd4 {[%clk 0:02:51.9]} 6. Nb3 {[%clk 0:02:47.4]} 6... Nc6
{[%clk 0:02:47.2]} 7. Nbxd4 {[%clk 0:02:44.2]} 7... Nxd4 {[%clk 0:02:46]} 8.
Qxd4 {[%clk 0:02:43.6]} 8... Qxd4 {[%clk 0:02:45.4]} 9. Nxd4 {[%clk 0:02:43.2]}
9... a6 {[%clk 0:02:44.8]} 10. Bf4 {[%clk 0:02:35.1]} 10... Ne7 {[%clk
0:02:34.2]} 11. Bd3 {[%clk 0:02:31.4]} 11... Nd5 {[%clk 0:02:32.3]} 12. Bd2
{[%clk 0:02:29.6]} 12... Bc5 {[%clk 0:02:27.8]} 13. Nf3 {[%clk 0:02:24.5]} 13...
Bd7 {[%clk 0:02:20.1]} 14. O-O {[%clk 0:02:18.3]} 14... O-O {[%clk 0:02:17.9]}
15. a3 {[%clk 0:02:17.3]} 15... Rac8 {[%clk 0:02:16.8]} 16. Ne5 {[%clk
0:02:16.1]} 16... Be8 {[%clk 0:02:12]} 17. Rad1 {[%clk 0:02:08.8]} 17... Bd6
{[%clk 0:02:06]} 18. Nc4 {[%clk 0:02:03.5]} 18... Bb8 {[%clk 0:01:59.6]} 19. g3
{[%clk 0:01:57.9]} 19... Ba7 {[%clk 0:01:57]} 20. Rfe1 {[%clk 0:01:53]} 20...
Rd8 {[%clk 0:01:45.1]} 21. Ne3 {[%clk 0:01:45.2]} 21... Bc6 {[%clk 0:01:37.2]}
22. Ng4 {[%clk 0:01:37.1]} 22... Bb8 {[%clk 0:01:28.7]} 23. Ne5 {[%clk
0:01:35.6]} 23... Bxe5 {[%clk 0:01:26.7]} 24. Rxe5 {[%clk 0:01:34.9]} 24... Ne7
{[%clk 0:01:19.5]} 25. Rde1 {[%clk 0:01:27.7]} 25... Rd7 {[%clk 0:01:17.6]} 26.
Bb4 {[%clk 0:01:26]} 26... Rfd8 {[%clk 0:01:11.4]} 27. h4 {[%clk 0:01:20.6]}
27... Nd5 {[%clk 0:01:08.5]} 28. Bd2 {[%clk 0:01:16.2]} 28... h6 {[%clk
0:01:03.2]} 29. f4 {[%clk 0:01:05.2]} 29... Nf6 {[%clk 0:01:02.1]} 30. Bc3
{[%clk 0:01:01.6]} 30... Ng4 {[%clk 0:01:00.8]} 31. R5e2 {[%clk 0:00:57.3]}
31... b5 {[%clk 0:00:54.7]} 32. Rd2 {[%clk 0:00:53.6]} 32... h5 {[%clk 0:00:50]}
33. Rdd1 {[%clk 0:00:50.7]} 33... Bf3 {[%clk 0:00:48.2]} 34. Ra1 {[%clk
0:00:48.1]} 34... Bb7 {[%clk 0:00:35.2]} 35. a4 {[%clk 0:00:47.7]} 35... Bc6
{[%clk 0:00:28.7]} 36. b3 {[%clk 0:00:31.8]} 36... Rxd3 {[%clk 0:00:27.6]} 37.
cxd3 {[%clk 0:00:30.6]} 37... Rxd3 {[%clk 0:00:27.3]} 38. Rac1 {[%clk
0:00:25.1]} 38... Rxg3+ {[%clk 0:00:26.6]} 39. Kf1 {[%clk 0:00:23.8]} 39... Bf3
{[%clk 0:00:19.9]} 40. Bd4 {[%clk 0:00:21.1]} 40... Rg2 {[%clk 0:00:17.8]} 41.
Rc8+ {[%clk 0:00:20.1]} 41... Kh7 {[%clk 0:00:17.5]} 42. Re3 {[%clk 0:00:18.6]}
42... Nh2+ {[%clk 0:00:17.1]} 43. Ke1 {[%clk 0:00:17.8]} 43... Bg4 {[%clk
0:00:16.8]} 44. Rec3 {[%clk 0:00:15.3]} 44... Nf3+ {[%clk 0:00:16.7]} 45. Kd1
{[%clk 0:00:14.7]} 45... Nxd4+ {[%clk 0:00:16.5]} 0-1

[Event "Early-Titled-Tuesday-Blitz-April-23-2024"]
[Site "Chess.com"]
[Date "2024.04.23"]
[Round "9"]
[White "ChainedDowntohell"]
[Black "Doublekk14"]
[Result "1-0"]
[WhiteElo "2571"]
[BlackElo "2382"]
[TimeControl "180+1"]
[EndTime "9:49:42 PDT"]
[Termination "ChainedDowntohell won on time"]

1. d4 {[%clk 0:03:00.9]} 1... Nf6 {[%clk 0:02:58.4]} 2. c4 {[%clk 0:03:01.2]}
2... e6 {[%clk 0:02:57.2]} 3. Nf3 {[%clk 0:03:00.9]} 3... d5 {[%clk 0:02:57.2]}
4. g3 {[%clk 0:02:57.5]} 4... c5 {[%clk 0:02:57]} 5. cxd5 {[%clk 0:02:56.9]}
5... exd5 {[%clk 0:02:57]} 6. Bg2 {[%clk 0:02:56.9]} 6... h6 {[%clk 0:02:57]} 7.
O-O {[%clk 0:02:56.1]} 7... Nc6 {[%clk 0:02:57.4]} 8. b3 {[%clk 0:02:52.9]} 8...
Be7 {[%clk 0:02:57.2]} 9. Ba3 {[%clk 0:02:51.7]} 9... cxd4 {[%clk 0:02:54.2]}
10. Nxd4 {[%clk 0:02:48.6]} 10... O-O {[%clk 0:02:52.2]} 11. Bxe7 {[%clk
0:02:34.4]} 11... Qxe7 {[%clk 0:02:47.6]} 12. Nc3 {[%clk 0:02:34.1]} 12... Be6
{[%clk 0:02:44.3]} 13. Qd3 {[%clk 0:02:28]} 13... Qb4 {[%clk 0:02:39.8]} 14.
Nxc6 {[%clk 0:02:17.4]} 14... bxc6 {[%clk 0:02:39.5]} 15. Rac1 {[%clk
0:02:15.3]} 15... Nd7 {[%clk 0:02:10.2]} 16. Na4 {[%clk 0:02:07.2]} 16... Qd6
{[%clk 0:02:03.4]} 17. e4 {[%clk 0:01:52.4]} 17... Nb6 {[%clk 0:01:51.4]} 18.
Nc5 {[%clk 0:01:47.7]} 18... Nd7 {[%clk 0:01:47]} 19. Nxd7 {[%clk 0:01:44.3]}
19... Qxd7 {[%clk 0:01:46]} 20. Rfd1 {[%clk 0:01:38.3]} 20... Rfd8 {[%clk
0:01:38.2]} 21. Rc5 {[%clk 0:01:33]} 21... Qd6 {[%clk 0:01:14.8]} 22. Qd4 {[%clk
0:01:30.8]} 22... a5 {[%clk 0:00:52.5]} 23. exd5 {[%clk 0:01:00.5]} 23... cxd5
{[%clk 0:00:52.1]} 24. Bxd5 {[%clk 0:00:56.6]} 24... a4 {[%clk 0:00:35.7]} 25.
bxa4 {[%clk 0:00:51.7]} 25... Ra7 {[%clk 0:00:19.4]} 26. Qe3 {[%clk 0:00:25.9]}
26... Rad7 {[%clk 0:00:17.9]} 27. Bf3 {[%clk 0:00:19.9]} 27... Qe7 {[%clk
0:00:05.2]} 28. Rxd7 {[%clk 0:00:19]} 28... Qxd7 {[%clk 0:00:04.5]} 29. a5
{[%clk 0:00:16.4]} 29... Rb8 {[%clk 0:00:03.8]} 30. h4 {[%clk 0:00:15]} 30...
Kh8 {[%clk 0:00:02.6]} 31. Kh2 {[%clk 0:00:14.3]} 31... Qe8 {[%clk 0:00:01.7]}
32. a6 {[%clk 0:00:11.1]} 32... Qd7 {[%clk 0:00:01.7]} 33. Ra5 {[%clk
0:00:09.6]} 33... Rb2 {[%clk 0:00:01.5]} 34. a7 {[%clk 0:00:09]} 34... Bd5
{[%clk 0:00:01.9]} 35. Rxd5 {[%clk 0:00:07.3]} 35... Qc8 {[%clk 0:00:01.6]} 36.
Ra5 {[%clk 0:00:06]} 36... Qd8 {[%clk 0:00:01.3]} 37. a8=Q {[%clk 0:00:06.3]}
37... Qxa8 {[%clk 0:00:01.9]} 38. Rxa8+ {[%clk 0:00:07]} 38... Kh7 {[%clk
0:00:02.8]} 39. Qe4+ {[%clk 0:00:06.9]} 39... g6 {[%clk 0:00:02.6]} 40. Qe5
{[%clk 0:00:07.6]} 40... Rxf2+ {[%clk 0:00:02.8]} 41. Kg1 {[%clk 0:00:07.9]}
41... Rg2+ {[%clk 0:00:03.1]} 42. Kxg2 {[%clk 0:00:07.5]} 1-0

[Event "Early-Titled-Tuesday-Blitz-April-23-2024"]
[Site "Chess.com"]
[Date "2024.04.23"]
[Round "9"]
[White "GeorgiosSouleidis"]
[Black "Flaccidmoves"]
[Result "1-0"]
[WhiteElo "2647"]
[BlackElo "2447"]
[TimeControl "180+1"]
[EndTime "9:49:42 PDT"]
[Termination "GeorgiosSouleidis won by resignation"]

1. e4 {[%clk 0:03:00.9]} 1... Nf6 {[%clk 0:02:58.8]} 2. e5 {[%clk 0:03:00.6]}
2... Nd5 {[%clk 0:02:59.1]} 3. d4 {[%clk 0:03:01.2]} 3... d6 {[%clk 0:02:59.2]}
4. Nf3 {[%clk 0:03:01.8]} 4... dxe5 {[%clk 0:02:59.3]} 5. Nxe5 {[%clk
0:03:02.1]} 5... c6 {[%clk 0:03:00]} 6. Be2 {[%clk 0:03:01.9]} 6... Bf5 {[%clk
0:02:59.9]} 7. O-O {[%clk 0:03:01.3]} 7... Nd7 {[%clk 0:02:59.7]} 8. Nf3 {[%clk
0:03:02]} 8... e6 {[%clk 0:02:59]} 9. c4 {[%clk 0:03:01.9]} 9... N5f6 {[%clk
0:02:58.9]} 10. Nc3 {[%clk 0:03:01.6]} 10... Bd6 {[%clk 0:02:58.4]} 11. c5
{[%clk 0:02:54.8]} 11... Bc7 {[%clk 0:02:54.9]} 12. Qb3 {[%clk 0:02:54.3]} 12...
b5 {[%clk 0:02:33.9]} 13. cxb6 {[%clk 0:02:41.3]} 13... Nxb6 {[%clk 0:02:23.9]}
14. Bg5 {[%clk 0:02:34.4]} 14... O-O {[%clk 0:02:23.5]} 15. Rac1 {[%clk
0:02:34]} 15... h6 {[%clk 0:02:21.1]} 16. Bh4 {[%clk 0:02:33.9]} 16... Rb8
{[%clk 0:02:04.4]} 17. Bg3 {[%clk 0:02:31.1]} 17... Bxg3 {[%clk 0:01:59.5]} 18.
hxg3 {[%clk 0:02:32]} 18... Nbd5 {[%clk 0:01:52.8]} 19. Qa3 {[%clk 0:02:30.6]}
19... Qb6 {[%clk 0:01:47.7]} 20. Na4 {[%clk 0:02:23]} 20... Qb4 {[%clk
0:01:33.9]} 21. Qxb4 {[%clk 0:02:22.6]} 21... Rxb4 {[%clk 0:01:33.7]} 22. b3
{[%clk 0:02:22.4]} 22... Be4 {[%clk 0:01:22.5]} 23. Rfd1 {[%clk 0:02:20.5]}
23... Ne7 {[%clk 0:01:02.4]} 24. Ne5 {[%clk 0:02:16.1]} 24... Rd8 {[%clk
0:00:56]} 25. f3 {[%clk 0:02:05.3]} 25... Bd5 {[%clk 0:00:54.9]} 26. Kf2 {[%clk
0:01:56.3]} 26... Nf5 {[%clk 0:00:50.2]} 27. Nxc6 {[%clk 0:01:38.8]} 27... Bxc6
{[%clk 0:00:49.8]} 28. Rxc6 {[%clk 0:01:39.7]} 28... Rbxd4 {[%clk 0:00:41.7]}
29. Rxd4 {[%clk 0:01:34]} 29... Rxd4 {[%clk 0:00:42.6]} 30. Rc8+ {[%clk
0:01:28]} 30... Kh7 {[%clk 0:00:41.8]} 31. g4 {[%clk 0:01:20.2]} 31... Ne7
{[%clk 0:00:25.1]} 32. Rc7 {[%clk 0:00:59]} 32... Rd7 {[%clk 0:00:23.6]} 33.
Rxd7 {[%clk 0:00:57.4]} 33... Nxd7 {[%clk 0:00:24.5]} 34. Ke3 {[%clk 0:00:52.6]}
34... Kg6 {[%clk 0:00:24.4]} 35. Bb5 {[%clk 0:00:41.2]} 35... Nd5+ {[%clk
0:00:21.5]} 36. Kd4 {[%clk 0:00:38.7]} 36... N7b6 {[%clk 0:00:19.9]} 37. Nxb6
{[%clk 0:00:38.3]} 37... axb6 {[%clk 0:00:19.5]} 38. Bc4 {[%clk 0:00:30.4]}
38... Nc7 {[%clk 0:00:19.3]} 39. a4 {[%clk 0:00:23.5]} 39... Kf6 {[%clk
0:00:19.6]} 40. b4 {[%clk 0:00:21.2]} 40... Ke7 {[%clk 0:00:19.9]} 41. a5 {[%clk
0:00:20.8]} 41... bxa5 {[%clk 0:00:20]} 42. bxa5 {[%clk 0:00:21.7]} 42... Kd6
{[%clk 0:00:19.6]} 43. f4 {[%clk 0:00:18.6]} 43... Kc6 {[%clk 0:00:18.5]} 44. f5
{[%clk 0:00:18.2]} 44... Kd6 {[%clk 0:00:17.4]} 45. a6 {[%clk 0:00:12.6]} 45...
e5+ {[%clk 0:00:16.8]} 46. Ke4 {[%clk 0:00:13.1]} 46... Na8 {[%clk 0:00:16.8]}
47. Bxf7 {[%clk 0:00:12.1]} 47... Nb6 {[%clk 0:00:14.3]} 48. a7 {[%clk
0:00:12.1]} 48... Kc7 {[%clk 0:00:14.4]} 49. Bd5 {[%clk 0:00:10.5]} 1-0